fUST/lending_fUST_20250524
["ID","MTS","AMOUNT","RATE_DAILY","PERIOD"]
[362196730,1748083863109,-430.0,0.00024931,3]
[362196731,1748083863119,-446.32,0.00024931,3]
[362196732,1748083863128,-564.4,0.00024931,3]
[362196733,1748083863139,-2647.08,0.00024931,3]
[362196734,1748083863148,-909.44,0.00024931,3]
[362196735,1748083863158,-1506.07,0.00024931,3]
[362196736,1748083863168,-430.0,0.00024931,3]
[362196737,1748083863177,-1000.0,0.0002494,5]
[362196738,1748083863187,-800.0,0.00024941,2]
[362196739,1748083863196,-800.0,0.00024953,2]
[362196740,1748083863206,-800.0,0.00024957,2]
[362196741,1748083863215,-1000.0,0.0002496,5]
[362196742,1748083863225,-500.0,0.00024973,2]
[362196743,1748083863234,-150.0,0.00024973,2]
[362196744,1748083863244,-168.51698682,0.00024973,2]
[362196745,1748083863254,-500.0,0.00024973,2]
[362196746,1748083863263,-600.0,0.00024973,2]
[362196747,1748083863274,-500.0,0.00024973,2]
[362196748,1748083863288,-1000.0,0.0002498,5]
[362196749,1748083863301,-1108.16655,0.0002498,5]
[362196750,1748083863311,-1000.0,0.00024986,2]
[362196751,1748083863321,-800.0,0.00024992,2]
[362196752,1748083863331,-2249.12494781,0.00024996,3]
[362196753,1748083863341,-1885186.83341451,0.00025,30]
[362196754,1748083863496,-23723.06723273,0.00025,30]
[362196755,1748083863508,-50493.80809788,0.00025,30]
[362196756,1748083863521,-5002.77454206,0.00025,30]
[362196757,1748083863661,-430.0,0.00024931,3]
[362196758,1748083863671,-4570.0,0.00025,30]
[362196759,1748083863683,-10160.49151046,0.00025,30]
[362196760,1748083863695,-2356.251372,0.00025,30]
[362196844,1748084449702,-178.74725208,0.00016438,3]
[362196845,1748084450227,-251.25274792,0.00016438,2]
[362196847,1748084500008,-160.306519,0.00013699,2]
[362196895,1748084588181,5000.0,0.00024,120]
[362196896,1748084625318,5000.0,0.00021,30]
[362196897,1748084642887,-194.40019772,0.00016438,2]
[362196898,1748084642918,-167.0,0.00016438,3]
[362196899,1748084642945,-1243.59980228,0.00016438,2]
[362196900,1748084710923,-430.0,0.00016438,2]
[362196957,1748085032024,-39.55578303,0.00016438,2]
[362196959,1748085032034,-169.0,0.00016438,3]
[362196961,1748085032043,-205.43419226,0.00020816,2]
[362196963,1748085032053,-244.9348824,0.00020916,2]
[362196965,1748085032063,-205.43419226,0.00021817,2]
[362196967,1748085032073,-150.0,0.000219,2]
[362196969,1748085032083,-300.0,0.00021915,2]
[362196971,1748085032092,-300.0,0.00021915,2]
[362196973,1748085032101,-300.0,0.00021915,2]
[362196975,1748085032111,-282.73178452,0.00021916,2]
[362196977,1748085032121,-233.94907006,0.00021916,2]
[362196979,1748085032130,-300.0,0.00021916,2]
[362196981,1748085032140,-1200.0,0.00021916,2]
[362196983,1748085032149,-450.96104856,0.00021917,3]
[362196984,1748085032158,-351.10558098,0.00021917,3]
[362196985,1748085032168,-270.0,0.00021917,3]
[362196986,1748085032177,-430.0,0.00021917,3]
[362196987,1748085032187,-430.0,0.00021917,3]
[362196989,1748085032196,-430.0,0.00021917,3]
[362196990,1748085032205,-430.0,0.00021917,3]
[362196991,1748085032215,-430.0,0.00021917,3]
[362196992,1748085032225,-430.0,0.00021917,3]
[362196993,1748085032234,-430.0,0.00021917,3]
[362196994,1748085032244,-430.0,0.00021917,3]
[362196995,1748085032254,-430.0,0.00021917,3]
[362196996,1748085032263,-430.0,0.00021917,3]
[362196997,1748085032273,-430.0,0.00021917,3]
[362196998,1748085032282,-430.0,0.00021917,3]
[362196999,1748085032291,-430.0,0.00021917,3]
[362197000,1748085032301,-390.92359206,0.00021917,3]
[362197001,1748085032312,-39.07640794,0.00021917,3]
[362197002,1748085032323,-430.0,0.00021917,3]
[362197003,1748085032335,-430.0,0.00021917,3]
[362197004,1748085032346,-430.0,0.00021917,3]
[362197005,1748085032355,-430.0,0.00021917,3]
[362197006,1748085032365,-430.0,0.00021917,3]
[362197007,1748085032375,-430.0,0.00021917,3]
[362197008,1748085032384,-400.0,0.00021917,3]
[362197009,1748085032393,-430.0,0.00021917,3]
[362197010,1748085032402,-430.0,0.00021917,3]
[362197011,1748085032411,-320.42358706,0.00021917,3]
[362197012,1748085032423,-109.57641294,0.00021917,3]
[362197013,1748085032433,-249.76730786,0.00021917,3]
[362197014,1748085032486,-180.23269214,0.00021917,3]
[362197015,1748085032496,-430.0,0.00021917,3]
[362197016,1748085032505,-301.99,0.00021917,3]
[362197017,1748085032514,-400.0,0.00021917,3]
[362197018,1748085032523,-400.0,0.00021917,3]
[362197019,1748085032533,-268.75565475,0.00021917,3]
[362197028,1748085037730,-161.24434525,0.00021917,3]
[362197029,1748085037740,-430.0,0.00021917,3]
[362197030,1748085037750,-430.0,0.00021917,3]
[362197031,1748085037759,-430.0,0.00021917,3]
[362197032,1748085037769,-430.0,0.00021917,3]
[362197033,1748085037779,-430.0,0.00021917,3]
[362197034,1748085037788,-430.0,0.00021917,3]
[362197035,1748085037797,-430.0,0.00021917,3]
[362197036,1748085037806,-470.0,0.00021917,3]
[362197037,1748085037816,-430.0,0.00021917,3]
[362197038,1748085037826,-430.0,0.00021917,3]
[362197039,1748085037836,-430.0,0.00021917,3]
[362197040,1748085037845,-430.0,0.00021917,3]
[362197041,1748085037855,-450.0,0.00021917,3]
[362197042,1748085037865,-430.0,0.00021917,3]
[362197043,1748085037874,-368.69660809,0.00021917,3]
[362197044,1748085037891,-61.30339191,0.00021917,3]
[362197045,1748085037899,-430.0,0.00021917,3]
[362197046,1748085037909,-430.0,0.00021917,3]
[362197047,1748085037918,-547.09890554,0.00021917,3]
[362197048,1748085037928,-430.0,0.00021917,3]
[362197049,1748085037938,-432.94805817,0.00021917,3]
[362197050,1748085037948,-575.87684312,0.00021917,3]
[362197051,1748085037957,-430.0,0.00021917,3]
[362197052,1748085037967,-430.0,0.00021917,3]
[362197053,1748085037977,-430.0,0.00021917,3]
[362197054,1748085037986,-430.0,0.00021917,3]
[362197055,1748085037996,-529.41,0.00021917,3]
[362197057,1748085038005,-430.0,0.00021917,3]
[362197059,1748085038015,-452.21,0.00021917,3]
[362197061,1748085038024,-430.0,0.00021917,3]
[362197062,1748085038034,-430.0,0.00021917,3]
[362197064,1748085038043,-430.0,0.00021917,3]
[362197066,1748085038052,-430.0,0.00021917,3]
[362197067,1748085038062,-430.0,0.00021917,3]
[362197068,1748085038071,-630.16,0.00021917,3]
[362197069,1748085038080,-347.03,0.00021917,3]
[362197070,1748085038090,-898.51,0.00021917,3]
[362197071,1748085038099,-430.0,0.00021917,3]
[362197072,1748085038109,-430.0,0.00021917,3]
[362197073,1748085038119,-293.02149161,0.00021917,3]
[362197074,1748085038128,-386.92687426,0.00021917,3]
[362197075,1748085038141,-43.07312574,0.00021917,3]
[362197076,1748085038151,-430.0,0.00021917,3]
[362197077,1748085038160,-430.0,0.00021917,3]
[362197078,1748085038169,-430.0,0.00021917,3]
[362197079,1748085038178,-430.0,0.00021917,3]
[362197080,1748085038190,-430.0,0.00021917,3]
[362197081,1748085038199,-430.0,0.00021917,3]
[362197082,1748085038209,-430.0,0.00021917,3]
[362197083,1748085038219,-430.0,0.00021917,3]
[362197084,1748085038228,-1634.31,0.00021917,3]
[362197085,1748085038238,-430.0,0.00021917,3]
[362197086,1748085038247,-430.0,0.00021917,3]
[362197087,1748085038258,-494.47,0.00021917,3]
[362197088,1748085038267,-430.0,0.00021917,3]
[362197089,1748085038276,-430.0,0.00021917,3]
[362197090,1748085038286,-430.0,0.00021917,3]
[362197091,1748085038295,-430.0,0.00021917,3]
[362197092,1748085038304,-430.0,0.00021917,3]
[362197093,1748085038314,-430.0,0.00021917,3]
[362197094,1748085038323,-430.0,0.00021917,3]
[362197095,1748085038333,-430.0,0.00021917,3]
[362197096,1748085038342,-430.0,0.00021917,3]
[362197097,1748085038353,-435.22,0.00021917,3]
[362197098,1748085038362,-430.0,0.00021917,3]
[362197099,1748085038371,-430.0,0.00021917,3]
[362197100,1748085038381,-430.0,0.00021917,3]
[362197101,1748085038390,-430.0,0.00021917,3]
[362197102,1748085038399,-430.0,0.00021917,3]
[362197103,1748085038409,-430.0,0.00021917,3]
[362197104,1748085038419,-430.0,0.00021917,3]
[362197105,1748085038428,-430.0,0.00021917,3]
[362197106,1748085038438,-430.0,0.00021917,3]
[362197107,1748085038447,-430.0,0.00021917,3]
[362197108,1748085038455,-430.0,0.00021917,3]
[362197109,1748085038464,-430.0,0.00021917,3]
[362197110,1748085038474,-430.0,0.00021917,3]
[362197111,1748085038485,-430.0,0.00021917,3]
[362197112,1748085038500,-430.0,0.00021917,3]
[362197113,1748085038510,-430.0,0.00021917,3]
[362197114,1748085038520,-430.0,0.00021917,3]
[362197115,1748085038529,-430.0,0.00021917,3]
[362197116,1748085038539,-640.15,0.00021917,3]
[362197117,1748085038549,-430.0,0.00021917,3]
[362197118,1748085038559,-430.0,0.00021917,3]
[362197119,1748085038569,-430.0,0.00021917,3]
[362197120,1748085038579,-510.04,0.00021917,3]
[362197121,1748085038588,-430.0,0.00021917,3]
[362197122,1748085038597,-430.0,0.00021917,3]
[362197123,1748085038607,-430.0,0.00021917,3]
[362197124,1748085038616,-434.24,0.00021917,3]
[362197125,1748085038625,-430.0,0.00021917,3]
[362197126,1748085038636,-430.0,0.00021917,3]
[362197127,1748085038646,-430.0,0.00021917,3]
[362197128,1748085038655,-430.0,0.00021917,3]
[362197129,1748085038664,-430.0,0.00021917,3]
[362197130,1748085038677,-430.0,0.00021917,3]
[362197131,1748085038687,-430.0,0.00021917,3]
[362197132,1748085038696,-1476.35,0.00021917,3]
[362197133,1748085038706,-674.06,0.00021917,3]
[362197134,1748085038717,-430.0,0.00021917,3]
[362197135,1748085038728,-812.25,0.00021917,3]
[362197136,1748085038737,-430.0,0.00021917,3]
[362197137,1748085038749,-430.0,0.00021917,3]
[362197138,1748085038758,-430.0,0.00021917,3]
[362197139,1748085038768,-430.0,0.00021917,3]
[362197140,1748085038778,-430.0,0.00021917,3]
[362197141,1748085038787,-430.0,0.00021917,3]
[362197142,1748085038797,-430.0,0.00021917,2]
[362197143,1748085038806,-430.0,0.00021917,3]
[362197144,1748085038934,-430.0,0.00021917,3]
[362197145,1748085038946,-430.0,0.00021917,3]
[362197146,1748085038955,-1194.91,0.00021917,3]
[362197147,1748085038965,-570.0,0.00022191,3]
[362197148,1748085038976,-430.0,0.00022191,3]
[362197149,1748085038986,-430.0,0.00022191,3]
[362197150,1748085038996,-430.0,0.00022191,3]
[362197151,1748085039006,-430.0,0.00022191,3]
[362197152,1748085039015,-430.0,0.00022191,3]
[362197153,1748085039025,-430.0,0.00022191,3]
[362197154,1748085039035,-506.12,0.00022191,3]
[362197155,1748085039045,-430.0,0.00022191,3]
[362197156,1748085039055,-430.0,0.00022191,3]
[362197157,1748085039065,-385.98556461,0.00022191,3]
[362197158,1748085039074,-630.16,0.00022191,3]
[362197159,1748085039084,-898.51,0.00022191,3]
[362197160,1748085039093,-435.74,0.00022191,3]
[362197161,1748085039102,-430.0,0.00022191,3]
[362197162,1748085039112,-430.0,0.00022191,3]
[362197163,1748085039123,-430.0,0.00022191,3]
[362197164,1748085039133,-430.0,0.00022191,3]
[362197165,1748085039143,-430.0,0.00022191,3]
[362197166,1748085039152,-1634.31,0.00022191,3]
[362197167,1748085039162,-430.0,0.00022191,3]
[362197168,1748085039171,-430.0,0.00022191,3]
[362197169,1748085039181,-430.0,0.00022191,3]
[362197170,1748085039190,-430.0,0.00022191,3]
[362197171,1748085039200,-430.0,0.00022191,3]
[362197172,1748085039210,-430.0,0.00022191,3]
[362197173,1748085039220,-435.22,0.00022191,3]
[362197174,1748085039229,-430.0,0.00022191,3]
[362197175,1748085039239,-430.0,0.00022191,3]
[362197176,1748085039248,-430.0,0.00022191,3]
[362197177,1748085039258,-430.0,0.00022191,3]
[362197178,1748085039267,-430.0,0.00022191,3]
[362197179,1748085039276,-430.0,0.00022191,3]
[362197180,1748085039287,-640.15,0.00022191,3]
[362197181,1748085039296,-430.0,0.00022191,3]
[362197182,1748085039306,-497.04,0.00022191,3]
[362197183,1748085039315,-510.04,0.00022191,3]
[362197184,1748085039324,-430.0,0.00022191,3]
[362197185,1748085039334,-430.0,0.00022191,3]
[362197186,1748085039344,-434.24,0.00022191,3]
[362197187,1748085039353,-430.0,0.00022191,3]
[362197188,1748085039363,-430.0,0.00022191,3]
[362197189,1748085039372,-1476.35,0.00022191,3]
[362197190,1748085039382,-674.06,0.00022191,3]
[362197191,1748085039391,-430.0,0.00022191,3]
[362197192,1748085039401,-184.24139487,0.00022191,3]
[362197219,1748085042874,-430.0,0.00021917,3]
[362197220,1748085042887,-628.00860513,0.00022191,3]
[362197222,1748085042896,-360.74128868,0.00022191,3]
[362197224,1748085042906,-430.0,0.00022191,3]
[362197226,1748085042916,-430.0,0.00022191,3]
[362197228,1748085042926,-430.0,0.00022191,2]
[362197229,1748085042937,-430.0,0.00022191,3]
[362197230,1748085042946,-430.0,0.00022191,3]
[362197231,1748085042955,-430.0,0.00022191,3]
[362197232,1748085042965,-1194.91,0.00022191,3]
[362197233,1748085042975,-160.0,0.00022327,2]
[362197234,1748085042985,-422.929492,0.00022349,2]
[362197236,1748085042995,-160.0,0.00022349,2]
[362197237,1748085043005,-500.0,0.00022365,2]
[362197238,1748085043014,-500.0,0.00022416,2]
[362197239,1748085043024,-500.0,0.00022416,2]
[362197240,1748085043033,-2748.185565,0.00022451,2]
[362197241,1748085043043,-207.4,0.00022451,2]
[362197242,1748085043053,-3888.1,0.00022463,2]
[362197243,1748085043062,-500.0,0.00022464,2]
[362197244,1748085043072,-500.0,0.00022464,2]
[362197246,1748085043082,-430.0,0.00022465,3]
[362197248,1748085043091,-430.0,0.00022465,3]
[362197249,1748085043101,-430.0,0.00022465,3]
[362197251,1748085043110,-430.0,0.00022465,3]
[362197253,1748085043120,-630.16,0.00022465,3]
[362197255,1748085043130,-898.51,0.00022465,3]
[362197257,1748085043139,-430.0,0.00022465,3]
[362197260,1748085043150,-430.0,0.00022465,3]
[362197262,1748085043159,-430.0,0.00022465,3]
[362197263,1748085043168,-430.0,0.00022465,3]
[362197264,1748085043178,-430.0,0.00022465,3]
[362197265,1748085043187,-1634.31,0.00022465,3]
[362197266,1748085043197,-430.0,0.00022465,3]
[362197267,1748085043206,-473.18,0.00022465,3]
[362197269,1748085043215,-430.0,0.00022465,3]
[362197271,1748085043224,-435.22,0.00022465,3]
[362197273,1748085043233,-205.98284919,0.00022465,3]
[362197274,1748085043245,-224.01715081,0.00022465,3]
[362197275,1748085043254,-430.0,0.00022465,3]
[362197276,1748085043265,-430.0,0.00022465,3]
[362197277,1748085043274,-430.0,0.00022465,3]
[362197278,1748085043284,-430.0,0.00022465,3]
[362197279,1748085043293,-640.15,0.00022465,3]
[362197280,1748085043302,-510.04,0.00022465,3]
[362197281,1748085043311,-430.0,0.00022465,3]
[362197282,1748085043320,-430.0,0.00022465,3]
[362197283,1748085043330,-434.24,0.00022465,3]
[362197284,1748085043339,-1476.35,0.00022465,3]
[362197285,1748085043349,-674.06,0.00022465,3]
[362197286,1748085043358,-430.0,0.00022465,3]
[362197287,1748085043368,-812.25,0.00022465,3]
[362197288,1748085043377,-430.0,0.00022465,3]
[362197289,1748085043387,-430.0,0.00022465,3]
[362197290,1748085043496,-430.0,0.00022465,2]
[362197291,1748085043507,-430.0,0.00022465,3]
[362197292,1748085043517,-430.0,0.00022465,3]
[362197293,1748085043527,-430.0,0.00022465,3]
[362197294,1748085043536,-1194.91,0.00022465,3]
[362197295,1748085043546,-500.0,0.0002272,2]
[362197296,1748085043556,-430.0,0.00022739,3]
[362197297,1748085043566,-430.0,0.00022739,3]
[362197298,1748085043575,-210.0,0.00022739,3]
[362197299,1748085043584,-630.16,0.00022739,3]
[362197300,1748085043594,-898.51,0.00022739,3]
[362197301,1748085043603,-251.69,0.00022739,3]
[362197302,1748085043613,-430.0,0.00022739,3]
[362197303,1748085043623,-430.0,0.00022739,3]
[362197304,1748085043632,-430.0,0.00022739,3]
[362197305,1748085043642,-1634.31,0.00022739,3]
[362197306,1748085043662,-430.0,0.00022739,3]
[362197307,1748085043674,-430.0,0.00022739,3]
[362197308,1748085043687,-435.22,0.00022739,3]
[362197309,1748085043697,-430.0,0.00022739,3]
[362197310,1748085043707,-430.0,0.00022739,3]
[362197311,1748085043719,-430.0,0.00022739,3]
[362197312,1748085043730,-430.0,0.00022739,3]
[362197313,1748085043740,-430.0,0.00022739,3]
[362197314,1748085043751,-640.15,0.00022739,3]
[362197315,1748085043762,-510.04,0.00022739,3]
[362197316,1748085043772,-430.0,0.00022739,3]
[362197317,1748085043782,-495.46546602,0.00022739,3]
[362197318,1748085043792,-434.24,0.00022739,3]
[362197319,1748085043802,-1476.35,0.00022739,3]
[362197320,1748085043812,-674.06,0.00022739,3]
[362197321,1748085043822,-430.0,0.00022739,3]
[362197322,1748085043832,-812.25,0.00022739,3]
[362197323,1748085043842,-430.0,0.00022739,3]
[362197324,1748085043851,-297.39,0.00022739,3]
[362197325,1748085043861,-430.0,0.00022739,2]
[362197326,1748085043871,-430.0,0.00022739,3]
[362197327,1748085043881,-305.8443948,0.00022739,3]
[362197328,1748085043892,-430.0,0.00022739,3]
[362197329,1748085043902,-1194.91,0.00022739,3]
[362197330,1748085043913,-502.53694732,0.00022744,2]
[362197331,1748085043923,-212.51988043,0.00022887,2]
[362197332,1748085043932,-225.75942845,0.000229,8]
[362197333,1748085043942,-1000.0,0.00022964,2]
[362197334,1748085043951,-160.0,0.00023,3]
[362197335,1748085043961,-422.63880603,0.00023,3]
[362197336,1748085043971,-160.0,0.00023,3]
[362197337,1748085043982,-10000.0,0.00023,2]
[362197338,1748085043992,-229.12393663,0.00023,3]
[362197339,1748085044002,-430.0,0.00023013,3]
[362197340,1748085044012,-332.75812451,0.00023013,3]
[362197341,1748085045854,-97.24187549,0.00023013,3]
[362197342,1748085045864,-898.51,0.00023013,3]
[362197343,1748085045874,-430.0,0.00023013,3]
[362197344,1748085045884,-61.93853587,0.00023013,3]
[362197345,1748085045907,-368.06146413,0.00023013,3]
[362197346,1748085045916,-430.0,0.00023013,3]
[362197347,1748085045926,-1634.31,0.00023013,3]
[362197348,1748085045936,-315.81410087,0.00023013,3]
[362197354,1748085455981,4001.13135775,0.0002465,120]
[362197401,1748086231916,-190.253198,0.00013699,2]
[362197418,1748086232428,-185.0,0.00016438,3]
[362197419,1748086232439,-310.6851014,0.00017184,2]
[362197420,1748086232449,-225.75942845,0.000179,2]
[362197421,1748086232458,-300.0,0.00017998,2]
[362197423,1748086232468,-300.0,0.00017998,2]
[362197425,1748086232477,-1200.0,0.00017998,2]
[362197426,1748086232487,-500.0,0.00017999,2]
[362197427,1748086232496,-180.65575596,0.00017999,2]
[362197428,1748086232505,-487.58305725,0.00017999,2]
[362197429,1748086232515,-500.0,0.00017999,2]
[362197431,1748086232524,-500.0,0.00017999,2]
[362197432,1748086232534,-500.0,0.00017999,2]
[362197433,1748086232543,-500.0,0.00017999,2]
[362197434,1748086232552,-334.79152321,0.00017999,2]
[362197435,1748086232561,-500.0,0.00017999,2]
[362197436,1748086232570,-500.0,0.00017999,2]
[362197437,1748086232579,-500.0,0.00017999,2]
[362197438,1748086232588,-500.0,0.00017999,2]
[362197439,1748086232597,-547.76191006,0.00017999,2]
[362197440,1748086232606,-500.0,0.00017999,2]
[362197441,1748086232616,-500.0,0.00017999,2]
[362197442,1748086232625,-7950.32154311,0.00018,3]
[362197443,1748086232636,-394.92569159,0.00018,3]
[362197444,1748086232647,-1415.8162618,0.00018,3]
[362197456,1748086237895,-64716.78178628,0.00018,3]
[362197458,1748086237906,-250.64967522,0.0001874,2]
[362197460,1748086237916,-420.0,0.00019638,2]
[362197461,1748086237925,-420.0,0.00019638,2]
[362197462,1748086237935,-225.75942845,0.0001965,2]
[362197463,1748086237945,-1680.0,0.00019734,2]
[362197464,1748086237956,-265.331146,0.00019864,2]
[362197465,1748086237966,-538.6335305,0.00020086,2]
[362197466,1748086237975,-250.0,0.0002033,2]
[362197467,1748086237985,-166.0,0.00020415,2]
[362197468,1748086237995,-24900.0,0.00021053,2]
[362197469,1748086238007,-234.007874,0.00021156,2]
[362197470,1748086238016,-225.75942845,0.000214,5]
[362197471,1748086238026,-587.0,0.00021427,2]
[362197472,1748086238039,-587.0,0.00021427,2]
[362197473,1748086238048,-2351.0,0.00021638,2]
[362197474,1748086238058,-296.47015038,0.00021817,2]
[362197475,1748086238067,-240.333,0.00021916,2]
[362197476,1748086238077,-178.555,0.00021916,2]
[362197477,1748086238087,-715.66248081,0.00021917,3]
[362197478,1748086238098,-157.89,0.00021917,2]
[362197479,1748086238108,-430.0,0.00021917,3]
[362197480,1748086238118,-430.0,0.00021917,3]
[362197481,1748086238128,-315.02899805,0.00021917,3]
[362197482,1748086238138,-430.0,0.00021917,3]
[362197483,1748086238148,-435.86175783,0.00021917,3]
[362197484,1748086238158,-430.0,0.00021917,3]
[362197485,1748086238169,-430.0,0.00021917,3]
[362197486,1748086238178,-430.0,0.00021917,3]
[362197487,1748086238188,-430.0,0.00021917,3]
[362197488,1748086238197,-420.0,0.00021917,3]
[362197489,1748086238207,-370.0,0.00021917,3]
[362197490,1748086238217,-360.0,0.00021917,3]
[362197491,1748086238227,-430.0,0.00021917,3]
[362197492,1748086238236,-430.0,0.00021917,3]
[362197493,1748086238246,-400.0,0.00021917,3]
[362197494,1748086238255,-430.0,0.00021917,3]
[362197495,1748086238264,-164.74913287,0.00021917,3]
[362197496,1748086238273,-430.0,0.00021917,3]
[362197497,1748086238283,-430.0,0.00021917,3]
[362197498,1748086238292,-430.0,0.00021917,3]
[362197499,1748086238301,-459.86550571,0.00021917,3]
[362197500,1748086238310,-430.0,0.00021917,3]
[362197501,1748086238319,-430.0,0.00021917,3]
[362197502,1748086238329,-430.0,0.00021917,3]
[362197503,1748086238338,-430.0,0.00021917,3]
[362197504,1748086238347,-430.0,0.00021917,3]
[362197505,1748086238357,-430.0,0.00021917,3]
[362197506,1748086238366,-460.48622195,0.00021917,3]
[362197507,1748086238377,-430.0,0.00021917,3]
[362197508,1748086238387,-461.12759688,0.00021917,3]
[362197509,1748086238396,-430.0,0.00021917,3]
[362197510,1748086238406,-430.0,0.00021917,3]
[362197511,1748086238416,-430.0,0.00021917,2]
[362197512,1748086238426,-430.0,0.00021917,3]
[362197513,1748086238435,-400.0,0.00021917,3]
[362197514,1748086238444,-430.0,0.00021917,3]
[362197515,1748086238454,-430.0,0.00021917,3]
[362197516,1748086238463,-430.0,0.00021917,3]
[362197517,1748086238476,-430.0,0.00021917,3]
[362197518,1748086238486,-430.0,0.00021917,3]
[362197519,1748086238496,-320.0,0.00021917,3]
[362197520,1748086238505,-430.0,0.00021917,3]
[362197521,1748086238515,-385.74248677,0.00021917,3]
[362197522,1748086238524,-430.0,0.00021917,3]
[362197523,1748086238534,-430.0,0.00021917,3]
[362197524,1748086238543,-430.0,0.00021917,3]
[362197525,1748086238553,-430.0,0.00021917,3]
[362197526,1748086238563,-430.0,0.00021917,3]
[362197527,1748086238573,-482.84,0.00021917,3]
[362197528,1748086238582,-430.0,0.00021917,3]
[362197529,1748086238591,-430.0,0.00021917,3]
[362197530,1748086238601,-212.51988043,0.00021917,3]
[362197531,1748086238611,-430.0,0.00021917,3]
[362197532,1748086238621,-430.0,0.00021917,3]
[362197533,1748086238630,-430.0,0.00021917,3]
[362197534,1748086238639,-430.0,0.00021917,3]
[362197535,1748086238649,-430.0,0.00021917,3]
[362197536,1748086238658,-430.0,0.00021917,3]
[362197537,1748086238667,-430.0,0.00021917,3]
[362197538,1748086238677,-430.0,0.00021917,3]
[362197539,1748086238686,-430.0,0.00021917,3]
[362197540,1748086238695,-430.0,0.00021917,3]
[362197541,1748086238704,-430.0,0.00021917,3]
[362197542,1748086238714,-430.0,0.00021917,3]
[362197543,1748086238722,-430.0,0.00021917,3]
[362197544,1748086238732,-430.0,0.00021917,3]
[362197545,1748086238741,-430.0,0.00021917,3]
[362197546,1748086238750,-360.99160513,0.00021917,3]
[362197547,1748086238760,-430.0,0.00021917,3]
[362197548,1748086238769,-504.41085463,0.00021917,3]
[362197549,1748086238778,-430.0,0.00021917,3]
[362197550,1748086238788,-430.0,0.00021917,3]
[362197551,1748086238797,-500.0,0.00021917,3]
[362197552,1748086238806,-430.0,0.00021917,3]
[362197553,1748086238816,-430.0,0.00021917,3]
[362197554,1748086238825,-430.0,0.00021917,3]
[362197555,1748086238835,-403.0591896,0.00021917,3]
[362197556,1748086238845,-362.79410507,0.00021917,3]
[362197557,1748086238855,-430.0,0.00021917,3]
[362197558,1748086238866,-430.0,0.00021917,3]
[362197559,1748086238875,-430.0,0.00021917,3]
[362197560,1748086238886,-430.0,0.00021917,3]
[362197561,1748086238895,-450.0,0.00021917,3]
[362197562,1748086238905,-430.0,0.00021917,3]
[362197563,1748086238916,-351.03255134,0.00021917,3]
[362197564,1748086238925,-430.0,0.00021917,3]
[362197565,1748086238935,-430.0,0.00021917,3]
[362197566,1748086238945,-430.0,0.00021917,3]
[362197567,1748086238955,-256.8820146,0.00021917,3]
[362197568,1748086238964,-430.0,0.00021917,3]
[362197569,1748086238973,-430.0,0.00021917,3]